bitfinex/quotes_ETHUSD_20241204
["timestamp","ask_amount","ask_price","bid_price","bid_amount"]
[1733290786994,0.25413296,3686.6,3686.4,2.71266]
[1733290787194,9.29,3686.7,3686.1,0.52939611]
[1733290787365,0.25417539,3686.6,3686.2,2.71278]
[1733290787691,0.55,3686.7,3686.1,0.52939611]
[1733290787887,0.55,3686.4,3686.1,0.52939611]
[1733290788269,0.55,3686.7,3686.1,0.52939611]
[1733290788469,0.55,3686.5,3686.1,0.52939611]
[1733290788661,0.25420501,3686.4,3686.1,0.52939611]
[1733290788869,0.55,3686.7,3686.1,3.24226611]
[1733290789066,0.55,3686.5,3686.1,2.71287]
[1733290789263,0.25421673,3686.4,3686.1,2.71287]
[1733290789589,0.55,3686.7,3686.1,2.71287]
[1733290789797,0.55,3686.5,3686.1,2.71287]
[1733290789969,0.25421816,3686.4,3686.1,2.71287]
[1733290790168,0.55,3686.7,3686.1,2.71287]
[1733290790400,0.7545,3686.4,3685.9,0.54020011]
[1733290790554,9.54421797,3686.3,3685.9,0.54020011]
[1733290790754,0.55,3686.1,3685.9,0.54020011]
[1733290790958,0.25421797,3686.0,3685.9,0.54020011]
[1733290791173,0.55,3686.2,3685.9,0.54020011]
[1733290791465,0.55,3686.0,3685.9,0.54020011]
[1733290791665,0.80423817,3686.0,3685.9,0.54020011]
[1733290791892,1.61293817,3686.0,3685.9,0.54020011]
[1733290792255,1.3587,3686.0,3685.9,0.54020011]
[1733290793872,1.3587,3686.0,3685.9,3.25324011]
[1733290797058,1.3587,3686.0,3685.9,2.71304]
[1733290799604,1.49457,3686.0,3685.4,0.54109821]
[1733290799762,1.49457,3686.0,3685.2,2.71355]
[1733290799957,1.49457,3686.0,3685.6,2.71324]
[1733290800395,1.49457,3686.0,3685.2,0.5443562]
[1733290800561,0.55,3685.8,3685.2,0.5443562]
[1733290800764,0.55,3685.9,3685.3,2.71348]
[1733290801058,0.55,3685.9,3685.7,2.71313]
[1733290805689,0.55,3685.9,3685.8,2.71311]
[1733290807880,8.74,3686.1,3686.0,2.71296]
[1733290808080,9.29,3686.1,3686.0,2.71296]
[1733290809821,8.74,3686.1,3686.0,2.71296]
[1733290810122,8.74,3686.1,3686.0,3.24948787]
[1733290810627,9.29,3686.1,3686.0,3.24948787]
[1733290811110,8.74,3686.1,3686.0,3.24948787]
[1733290811520,12.29,3686.6,3686.4,2.71263]
[1733290811700,10.89648,3686.6,3686.0,3.24948787]
[1733290812019,9.29,3686.6,3686.5,2.7126]
[1733290813150,0.55,3686.6,3686.5,2.7126]
[1733290813299,9.5535,3687.0,3686.2,0.8031]
[1733290813502,0.8135,3687.2,3687.1,2.71215]
[1733290813708,0.95535,3687.2,3687.1,2.71215]
[1733290813945,0.8135,3687.4,3687.3,2.71201]
[1733290814314,0.8135,3687.6,3687.5,2.71184]
[1733290815526,8.74,3687.7,3687.1,2.71215]
[1733290815748,8.74,3687.7,3687.5,2.71184]
[1733290816819,0.55,3687.6,3687.5,2.71184]
[1733290817644,0.55,3687.7,3687.5,2.71184]
[1733290818353,0.55,3687.8,3687.2,3.26305954]
[1733290819060,0.55,3687.8,3687.7,2.71171]
[1733290823562,0.55,3687.9,3687.7,2.71171]
[1733290824128,0.55,3687.9,3687.6,2.71178]
[1733290825335,0.55,3687.9,3687.2,3.26305954]
[1733290825526,0.55,3687.9,3687.6,2.71174]
[1733290825954,0.55,3687.9,3687.7,2.7117]
[1733290827038,0.55,3687.9,3687.4,2.71192]
[1733290827653,0.55,3687.9,3686.9,0.7591]
[1733290827860,0.55,3687.9,3687.2,0.55293685]
[1733290828271,0.55,3687.9,3687.5,2.71184]
[1733290831173,0.55,3687.7,3687.5,2.71184]
[1733290831669,0.55,3687.5,3686.9,0.7591]
[1733290832669,9.29,3687.5,3687.1,2.71213]
[1733290833029,9.29,3687.5,3686.8,2.71236]
[1733290833235,0.55,3687.3,3686.8,2.71236]
[1733290835596,9.29,3687.3,3686.8,2.71236]
[1733290838287,9.29,3687.3,3686.7,2.71244]
[1733290839397,0.55,3687.1,3686.7,2.71244]
[1733290839553,0.55,3687.1,3686.4,3.26274157]
[1733290839758,0.55,3687.1,3686.5,2.71259]
[1733290840756,9.29,3687.1,3686.5,2.71259]
[1733290840952,0.7554,3686.8,3686.2,2.71274]
[1733290841190,0.7554,3686.8,3686.1,2.71287]
[1733290841191,9.29,3686.7,3686.1,2.71287]
[1733290842875,9.29,3686.7,3685.8,1.30993644]
[1733290843196,9.29,3686.7,3686.1,2.71285]
[1733290845106,0.55,3686.5,3685.8,0.54233644]
[1733290845469,0.55,3686.5,3685.7,3.2493719]
[1733290845703,0.55,3686.5,3685.7,2.71317]
[1733290846002,9.29,3686.5,3685.7,2.71317]
[1733290846298,0.55,3686.3,3685.7,2.71317]
[1733290847056,0.7908,3686.2,3685.7,2.71317]
[1733290847293,0.55,3686.1,3685.5,3.25367444]
[1733290847496,0.55,3686.1,3685.5,0.54036444]
[1733290848080,0.55,3686.1,3685.1,4.68368349]
[1733290848273,0.55,3686.1,3685.6,2.71325]
[1733290849404,0.55,3686.1,3685.4,0.55057228]
[1733290849776,0.55,3686.1,3685.5,2.71332]
[1733290850513,0.55,3686.1,3685.3,2.71347]
[1733290850713,0.7952,3686.0,3685.7,0.53791177]
[1733290851027,0.55,3685.9,3685.7,0.53791177]
[1733290851514,9.5352,3686.0,3685.7,0.53791177]
[1733290854023,10.60540835,3686.0,3685.7,0.53791177]
[1733290855211,9.5352,3686.0,3685.7,0.53791177]
[1733290855805,8.74,3686.0,3685.7,0.53791177]
[1733290856130,8.74,3686.0,3685.9,2.71304]
[1733290858504,8.74,3686.0,3685.7,0.53791177]
[1733290859438,0.783,3685.9,3685.7,0.53791177]
[1733290861640,1.3285,3686.3,3685.7,3.25108177]
[1733290862056,0.7785,3686.3,3685.8,2.71309]
[1733290862379,0.7785,3686.3,3685.9,2.713]
[1733290862582,9.5185,3686.3,3685.9,2.713]
[1733290863241,9.5185,3686.3,3685.7,1.35971177]
[1733290863436,8.74,3686.3,3685.7,1.35971177]
[1733290863642,8.74,3686.3,3685.7,1.8836913]
[1733290863965,8.74,3686.3,3686.0,2.71296]
[1733290865538,3.0,3686.4,3686.0,2.71296]
[1733290865776,8.74,3686.5,3686.3,2.71273]
[1733290866689,0.8179,3686.6,3685.9,1.16688349]
[1733290866895,0.55,3686.9,3686.2,2.71276]
[1733290867046,3.55,3686.9,3686.2,2.7128]
[1733290867466,3.55,3686.9,3686.3,2.71273]
[1733290868476,3.55,3686.9,3686.3,0.53299443]
[1733290868653,3.55,3686.9,3686.4,2.71265]
[1733290869388,3.0,3686.9,3686.4,2.71265]
[1733290870294,3.0,3686.9,3686.3,0.53299443]
[1733290870477,8.74,3686.9,3686.7,2.71242]
[1733290871122,8.74,3686.9,3686.3,4.00663443]
[1733290871281,8.74,3686.9,3686.8,2.71237]
[1733290872592,8.74,3686.9,3686.6,2.71251]
[1733290874576,0.7656,3687.0,3686.6,2.71251]
[1733290875215,0.7656,3687.0,3686.7,2.71245]
[1733290879947,0.7656,3687.0,3686.2,2.71275]
[1733290880270,0.7656,3687.0,3686.4,2.7126]
[1733290880784,8.74,3686.9,3686.4,2.7126]
[1733290881142,8.74,3686.9,3686.5,2.71259]
[1733290881372,8.74,3686.9,3686.5,2.71252]
[1733290881580,8.74,3686.9,3686.7,2.71245]
[1733290882940,8.74,3686.9,3686.2,3.24938251]
[1733290883140,8.74,3686.9,3686.5,2.71258]
[1733290884860,9.69056,3686.9,3686.5,2.71258]
[1733290885395,9.69056,3686.9,3686.7,0.53511215]
[1733290886675,8.74,3686.8,3686.7,0.53511215]
[1733290889045,8.74,3686.8,3686.2,2.71274]
[1733290889281,8.74,3686.8,3686.2,2.71277]
[1733290889586,0.775,3686.7,3686.4,0.55138674]
[1733290889886,9.515,3686.7,3686.4,0.55138674]
[1733290892393,9.515,3686.7,3686.2,2.71281]
[1733290893389,9.515,3686.7,3686.3,2.71272]
[1733290893598,8.74,3686.7,3686.0,0.5382863]
[1733290893753,8.74,3686.7,3686.5,2.71257]
[1733290894379,8.74,3686.7,3686.6,2.71252]
[1733290894595,8.74,3686.7,3686.1,0.821]
[1733290894766,8.74,3686.7,3686.5,2.71256]
[1733290895682,3.0,3687.0,3686.5,2.71256]
[1733290895882,4.55139,3687.0,3686.5,2.71256]
[1733290897194,4.55139,3687.0,3686.6,2.7125]
[1733290897805,4.55139,3687.0,3686.1,0.821]
[1733290898092,0.8222,3686.9,3686.1,2.71289]
[1733290898399,0.55,3686.8,3686.2,2.71278]
[1733290898768,8.74,3686.7,3686.2,2.71278]
[1733290898988,8.74,3686.7,3686.3,2.71274]
[1733290900099,8.74,3686.7,3686.4,2.71267]
[1733290900670,8.74,3686.7,3686.0,3.2512463]
[1733290901408,8.74,3686.7,3686.0,0.5382863]
[1733290902110,8.74,3686.7,3686.3,2.71273]
[1733290902465,8.74,3686.7,3686.0,0.5382863]
[1733290902669,8.74,3686.7,3686.3,2.71274]
[1733290902900,8.74,3686.7,3686.4,2.71266]
[1733290904302,8.74,3686.7,3686.5,2.71254]
[1733290904691,8.74,3686.8,3686.5,2.71254]
[1733290905404,8.74,3686.8,3686.1,2.71289]
[1733290905574,8.74,3686.8,3686.6,2.71252]
[1733290905780,9.99622,3686.8,3686.6,2.71252]
[1733290906371,9.99622,3686.8,3686.1,2.71289]
[1733290906697,9.99622,3686.8,3686.4,2.71266]
[1733290906698,8.74,3686.8,3686.4,2.71266]
[1733290907065,8.74,3686.8,3686.0,0.5382863]
[1733290907269,8.74,3686.8,3686.5,2.71259]
[1733290907913,0.7671,3686.7,3686.5,2.71259]
[1733290909112,0.7671,3686.7,3686.0,0.5382863]
[1733290910100,0.7671,3686.7,3686.3,2.71269]
[1733290910290,0.7671,3686.7,3686.4,2.71266]
[1733290910625,0.7671,3686.7,3686.0,0.5382863]
[1733290910626,8.74,3686.1,3686.0,0.5382863]
[1733290910796,0.7671,3686.2,3685.3,0.7507]
[1733290910797,0.55,3685.9,3685.3,2.71346]
[1733290912680,0.7528,3685.8,3685.3,2.71346]
[1733290913381,0.7528,3685.8,3684.9,0.7507]
[1733290913382,0.7528,3685.8,3685.2,2.71354]
[1733290914345,0.7528,3685.8,3685.3,2.71347]
[1733290916726,8.74,3685.7,3685.3,2.71347]
[1733290916925,8.74,3685.7,3685.0,0.53673266]
[1733290917129,8.74,3685.7,3685.4,2.71334]
[1733290918832,8.74,3685.7,3685.2,2.71355]
[1733290919031,8.74,3685.7,3685.1,0.40011527]
[1733290919796,8.74,3685.7,3685.4,2.71334]
[1733290920211,8.74,3685.7,3685.5,2.71332]
[1733290923318,8.74,3685.7,3685.1,0.40011527]
[1733290923518,8.74,3685.7,3685.6,2.71326]
[1733290925754,8.74,3686.0,3685.6,2.71326]
[1733290926136,8.74,3686.0,3685.7,2.71314]
[1733290926313,8.74,3686.0,3685.8,2.71307]
[1733290926740,8.74,3686.0,3685.9,2.71304]
[1733290928035,0.8074,3685.9,3685.7,2.71315]
[1733290928537,0.8074,3685.9,3685.6,0.53598146]
[1733290928722,9.5474,3685.9,3685.6,0.53598146]
[1733290929110,9.5474,3685.9,3685.6,3.24923146]
[1733290929316,9.5474,3685.9,3685.6,0.53598146]
[1733290929550,9.5474,3685.9,3684.7,2.71387]
[1733290929551,1.3007,3685.7,3684.7,2.71387]
[1733290929758,1.3007,3685.7,3685.0,2.71363]
[1733290929927,1.3007,3685.7,3684.9,0.53173664]
[1733290929928,1.3007,3685.7,3685.1,2.71362]
[1733290930719,1.3007,3685.7,3684.9,0.53173664]
[1733290931157,1.3007,3685.7,3685.2,2.71353]
[1733290931454,0.55,3685.4,3684.9,0.53173664]
[1733290931655,8.74,3685.2,3684.9,0.53173664]
[1733290931951,0.55,3685.1,3684.3,0.7731]
[1733290932258,0.55,3685.1,3684.7,2.71392]
[1733290933166,0.55,3684.9,3684.3,0.55302566]
[1733290933320,0.55,3684.9,3684.2,2.71422]
[1733290933751,0.55,3684.9,3684.3,2.71421]
[1733290933946,0.55,3684.9,3683.9,4.65877349]
[1733290934155,0.55,3684.9,3683.2,3.75957372]
[1733290934156,0.55,3684.7,3683.6,3.54319]
[1733290934323,0.55,3684.7,3684.1,2.71435]
[1733290935768,0.55,3684.7,3683.9,2.7145]
[1733290936062,0.55,3684.5,3683.9,2.7145]
[1733290936271,0.55,3684.1,3683.8,0.54509659]
[1733290936556,1.56161,3684.1,3683.8,2.71455]
[1733290936760,0.55,3684.1,3683.9,2.71451]
[1733290937121,8.74,3684.2,3683.5,1.70538305]
[1733290937317,8.74,3684.2,3684.1,2.71436]
[1733290941778,0.55,3684.1,3683.5,0.53849956]
[1733290942143,0.7955,3684.0,3683.5,0.53849956]
[1733290942339,0.7955,3684.0,3683.7,2.71464]
[1733290942865,0.7955,3684.0,3683.5,2.7148]
[1733290943038,8.74,3683.9,3683.5,2.7148]
[1733290943243,0.55,3683.8,3683.5,2.7148]
[1733290944682,0.55,3683.8,3682.2,1.087116]
[1733290944683,0.7763,3683.6,3682.7,3.48917]
[1733290944956,0.7763,3683.6,3683.3,2.71494]
[1733290946747,0.7763,3683.6,3682.7,1.94068349]
[1733290946948,0.7763,3683.6,3683.4,2.71486]
[1733290950596,0.55,3683.1,3682.6,2.71547]
[1733290950956,0.55,3683.1,3682.7,2.71538]
[1733290951969,0.55,3683.1,3682.8,2.7153]
[1733290954095,0.55,3683.1,3683.0,2.71517]
[1733290954278,0.7688,3683.2,3683.1,2.7151]
[1733290954485,8.74,3683.4,3682.9,2.71525]
[1733290954684,9.68907,3683.4,3683.0,2.71516]
[1733290954994,9.68907,3683.4,3682.8,2.71531]
[1733290955194,9.68907,3683.4,3682.6,0.54429089]
[1733290955359,9.68907,3683.4,3682.8,2.71526]
[1733290955693,9.68907,3683.4,3682.9,2.71523]
[1733290955898,0.55,3683.3,3683.0,2.71516]
[1733290956196,0.55,3683.3,3682.8,2.71532]
[1733290956698,0.55,3683.3,3682.9,2.71524]
[1733290957367,0.55,3683.3,3682.6,0.54429089]
[1733290957580,0.55,3683.3,3683.0,2.71517]
[1733290958294,0.55,3683.3,3682.6,3.25970089]
[1733290958600,0.55,3683.3,3683.1,2.71509]
[1733290958812,8.74,3683.4,3683.1,2.71509]
[1733290958813,0.55,3683.4,3683.1,2.71509]
[1733290959797,0.7507,3683.5,3683.1,2.71506]
[1733290960001,1.69977,3683.5,3683.2,2.71501]
[1733290960297,1.69977,3683.5,3683.2,2.71498]
[1733290960656,1.69977,3683.5,3683.3,2.71494]
[1733290961506,1.69977,3683.5,3683.1,2.71505]
[1733290962600,1.69977,3683.5,3683.2,2.71502]
[1733290964765,1.69977,3683.5,3683.3,2.71494]
[1733290964962,0.7507,3683.5,3683.3,2.71494]
[1733290965376,0.7507,3683.5,3682.8,2.71532]
[1733290965377,0.7603,3683.1,3682.8,2.71531]
[1733290965565,0.7603,3683.1,3682.0,3.88279349]
[1733290965900,0.7603,3683.1,3682.8,2.7153]
[1733290966071,0.7603,3683.1,3682.3,1.7215167]
[1733290966266,1.3103,3683.1,3683.0,2.71517]
[1733290968305,0.7603,3683.1,3683.0,2.71517]
[1733290969303,0.7603,3683.1,3682.0,2.71591]
[1733290969304,8.74,3682.9,3681.9,0.8196]
[1733290969604,8.74,3682.9,3682.2,2.71575]
[1733290969605,0.7896,3682.7,3682.2,2.71575]
[1733290970175,0.55,3682.6,3681.9,0.55484448]
[1733290970504,1.74256,3682.7,3681.8,0.01459945]
[1733290970505,0.55,3682.4,3682.0,2.7159]
[1733290970868,0.55,3682.4,3681.8,0.01459945]
[1733290971068,0.55,3682.4,3681.8,2.73065945]
[1733290971678,0.55,3682.4,3681.8,0.01459945]
[1733290971917,0.55,3682.4,3682.0,2.71589]
[1733290972105,0.55,3682.4,3681.8,1.73056648]
[1733290972314,0.55,3682.4,3682.1,2.71582]
[1733290974489,0.55,3682.2,3681.9,2.71598]
[1733290975473,0.55,3682.2,3681.8,0.01459945]
[1733290976012,0.55,3682.0,3681.8,0.01459945]
[1733290980329,0.8258,3681.9,3681.8,0.01459945]
[1733290980492,1.3758,3681.9,3681.8,0.01459945]
[1733290980829,1.56838,3681.9,3681.8,0.01459945]
[1733290981689,11.47526349,3681.9,3681.8,0.01459945]
[1733290983185,17.19124349,3681.9,3681.8,0.01459945]
[1733290983532,17.19124349,3681.9,3679.9,3.51083]
[1733290983533,11.72540055,3681.5,3679.9,0.7934]
[1733290983687,0.55,3680.9,3679.9,2.71743]
[1733290983885,0.55,3680.9,3680.3,1.16688349]
[1733290983886,8.72540055,3680.7,3680.3,1.16688349]
[1733290984088,1.3322,3681.4,3680.5,1.16688349]
[1733290984299,8.72540055,3681.5,3681.3,2.71638]
[1733290984496,8.72540055,3681.5,3681.4,2.71635]
[1733290985387,8.72540055,3681.5,3681.1,2.71651]
[1733290985803,8.72540055,3681.5,3681.2,2.71649]
[1733290985996,0.87254006,3681.4,3680.7,2.71684]
[1733290986200,0.55,3681.3,3680.9,2.71667]
[1733290986438,0.7778,3681.2,3680.9,2.71667]
[1733290987029,0.7778,3681.2,3680.7,2.71686]
[1733290987201,0.7778,3681.2,3680.8,2.71679]
[1733290987411,1.87037406,3681.2,3680.8,2.71679]
[1733290987850,1.87037406,3681.2,3680.4,4.70812349]
[1733290988003,0.7778,3681.2,3680.9,2.71672]
[1733290989312,0.7778,3681.2,3680.7,1.16688349]
[1733290989515,0.7778,3681.2,3679.8,2.98867]
[1733290989516,0.55,3681.1,3680.5,2.717]
[1733290992231,0.55,3681.1,3679.5,4.15584349]
[1733290992232,0.7995,3681.0,3679.6,0.778]
[1733290992442,0.7995,3681.0,3680.3,1.16688349]
[1733290992443,0.55,3680.9,3680.3,1.16688349]
[1733290992625,0.55,3680.9,3680.4,2.71709]
[1733290993013,0.55,3680.9,3680.5,2.71698]
[1733290994016,0.55,3680.9,3680.6,2.71693]
[1733290994947,0.55,3680.9,3680.6,1.16688349]
[1733290995245,9.52490055,3681.0,3680.9,2.71672]
[1733290995246,8.72540055,3681.0,3680.9,2.71672]
[1733290995607,8.72540055,3681.0,3680.9,4.66160349]
[1733290995943,8.72540055,3681.0,3680.9,5.12776384]
[1733290997341,8.72540055,3681.0,3680.9,4.66160349]
[1733290997949,0.7995,3681.6,3681.3,2.71636]
[1733290998120,0.7995,3681.6,3681.4,2.71635]
[1733290998745,1.3657,3681.9,3681.1,1.16688349]
[1733290999046,1.3657,3681.9,3681.5,2.71625]
[1733290999248,0.55,3681.7,3681.5,2.71625]
[1733290999611,0.55,3681.7,3681.2,2.71645]
[1733291000347,0.55,3681.7,3681.5,2.71624]
[1733291000720,0.55,3681.7,3681.3,2.71642]
[1733291001256,0.55,3681.7,3681.1,3.88345349]
[1733291001424,1.60722662,3681.7,3681.1,3.88345349]
[1733291001764,1.60722662,3681.7,3681.2,2.71649]
[1733291001923,0.7524,3681.6,3681.2,2.71649]
[1733291002633,0.7524,3681.6,3681.2,2.71644]
[1733291003043,0.7524,3681.6,3681.2,1.16688349]
[1733291003221,0.55,3681.9,3681.2,1.16688349]
[1733291003427,2.59624006,3681.9,3681.5,3.88315349]
[1733291003761,2.59624006,3681.9,3681.6,2.7162]
[1733291003947,11.32164061,3681.9,3681.5,1.16688349]
[1733291004262,11.32164061,3681.9,3681.2,1.16688349]
[1733291004959,11.32164061,3681.9,3681.4,2.71634]
[1733291006239,11.32164061,3681.9,3681.5,2.71623]
[1733291006992,2.59624006,3681.9,3681.5,2.71623]
[1733291008256,0.55,3681.7,3681.5,2.71623]
[1733291009228,0.55,3681.7,3681.3,2.71642]
[1733291009526,0.55,3681.7,3681.4,2.71634]
[1733291010768,0.55,3681.7,3681.4,3.88322349]
[1733291011937,0.55,3681.7,3681.4,2.71634]
[1733291012182,0.55,3681.7,3677.5,1.5]
[1733291012183,9.27540055,3680.7,3679.7,0.2712]
[1733291012495,0.55,3680.5,3679.9,3.88433349]
[1733291012693,0.55,3680.5,3679.9,1.16688349]
[1733291012870,0.55,3680.5,3680.2,1.16688349]
[1733291013066,8.72540055,3680.7,3680.2,1.16688349]
[1733291013324,8.72540055,3680.7,3680.3,2.71715]
[1733291013478,8.72540055,3680.7,3680.2,1.16688349]
[1733291013679,0.8132,3680.9,3680.5,2.71701]
[1733291013895,0.8132,3680.9,3679.1,2.71803]
[1733291013896,8.72540055,3681.1,3680.6,2.59270617]
[1733291014121,8.72540055,3681.1,3680.8,2.71678]
[1733291014471,8.72540055,3681.1,3680.9,2.71671]
[1733291014672,8.72540055,3681.1,3681.0,2.71665]
[1733291018919,0.55,3681.5,3681.0,2.71665]
[1733291019492,8.72540055,3682.3,3681.5,0.7768]
[1733291019725,8.72540055,3682.2,3681.5,3.36950617]
[1733291020153,0.8081,3682.6,3681.9,2.59270617]
[1733291020353,8.72540055,3683.4,3682.4,2.7156]
[1733291020652,5.0,3683.8,3682.4,2.7156]
[1733291020653,10.43441903,3683.3,3682.4,2.7156]
[1733291021513,8.72540055,3683.1,3682.5,2.71549]
[1733291022230,0.55,3683.0,3682.2,0.696]
[1733291022538,0.55,3683.0,3682.3,2.71565]
[1733291023309,0.7573,3682.9,3682.3,2.71565]
[1733291023914,0.55,3682.8,3682.4,2.7156]
[1733291026432,0.55,3682.8,3682.4,2.71559]
[1733291027206,0.55,3682.8,3682.5,2.71553]
[1733291027755,0.55,3682.8,3682.2,2.71569]
[1733291028065,0.55,3682.8,3682.3,2.71568]
[1733291028665,0.55,3682.8,3682.0,2.71591]
[1733291028858,0.55,3682.8,3682.4,2.71557]
[1733291029077,0.55,3682.8,3682.0,2.71591]
[1733291029382,0.55,3682.8,3682.3,2.71563]
[1733291029583,0.55,3682.8,3682.4,2.71558]
[1733291030064,0.55,3682.8,3682.5,2.71552]
[1733291030588,0.55,3682.8,3682.7,2.71539]
[1733291030755,0.7988,3683.3,3683.1,2.71504]
[1733291031098,7.59270617,3684.7,3683.3,2.7149]
[1733291031099,0.7988,3683.6,3683.3,2.7149]
[1733291032316,0.55,3683.5,3683.3,2.7149]
[1733291033725,0.55,3683.5,3683.4,2.71488]
[1733291034018,0.55,3683.5,3683.4,5.30758617]
[1733291037136,0.55,3683.8,3683.4,5.30758617]
[1733291037439,1.55557006,3683.8,3683.4,5.30758617]
[1733291038498,1.55557006,3683.8,3683.5,2.7148]
[1733291038735,0.55,3683.8,3683.6,2.71471]
[1733291040843,0.55,3683.8,3683.7,2.71466]
[1733291041149,0.55,3683.8,3683.5,2.7148]
[1733291042351,0.55,3683.8,3683.7,2.71466]
[1733291042657,0.55,3684.1,3683.7,2.71466]
[1733291042878,0.55,3684.1,3683.9,5.30718617]
[1733291044723,0.55,3684.1,3683.9,2.59270617]
[1733291044850,0.55,3684.1,3684.0,2.71444]
[1733291045146,0.55,3684.1,3684.0,2.71344]
[1733291046652,0.55,3684.4,3684.1,2.71431]
[1733291048177,8.72540055,3685.1,3684.3,3.40070617]
[1733291048488,8.72540055,3685.1,3684.7,5.30662617]
[1733291049293,8.72540055,3685.1,3684.7,2.59270617]
[1733291049485,0.55,3685.0,3684.8,2.71383]
[1733291049697,8.72540055,3685.1,3684.7,2.59270617]
[1733291049924,8.72540055,3685.1,3684.9,2.7137]
[1733291050227,8.72540055,3685.1,3685.0,2.7137]
[1733291051024,0.8106,3685.5,3684.7,2.59270617]
[1733291051215,0.8106,3685.5,3685.2,2.71354]
[1733291052329,0.55,3685.4,3685.2,2.71354]
[1733291052946,0.68606,3685.4,3685.0,2.71368]
[1733291053915,0.68606,3685.4,3684.9,2.71375]
[1733291055116,0.68606,3685.4,3684.7,2.59270617]
[1733291055334,0.55,3685.4,3684.7,5.30662617]
[1733291055517,0.55,3685.4,3685.2,2.71352]
[1733291056407,0.55,3685.4,3684.7,5.30662617]
[1733291056891,0.55,3685.4,3684.9,2.71375]
[1733291061048,0.55,3685.4,3684.7,2.59270617]
[1733291061750,0.55,3685.4,3684.8,2.71385]
[1733291062160,0.55,3685.4,3684.9,2.71377]
[1733291063163,0.55,3685.4,3685.0,2.71363]
[1733291063370,0.55,3685.4,3685.0,2.71366]
[1733291063747,0.55,3685.4,3685.1,2.71362]
[1733291064989,0.55,3685.4,3684.9,2.71375]
[1733291065149,0.55,3685.4,3685.0,2.71369]
[1733291066195,0.55,3685.4,3684.7,2.59270617]
[1733291066355,0.55,3685.4,3684.8,0.60929162]
[1733291066753,0.55,3685.4,3685.0,2.71364]
[1733291068812,0.55,3685.4,3685.0,2.71364]
[1733291069389,0.55,3685.4,3685.2,2.71355]
[1733291069565,0.55,3685.4,3685.2,3.88066236]
[1733291070774,0.55,3685.4,3684.6,0.7862]
[1733291070775,0.55,3685.4,3684.9,1.16716236]
[1733291070981,0.68606,3685.4,3684.9,1.16716236]
[1733291073000,9.41146055,3685.4,3684.9,1.16716236]
[1733291074575,0.8271,3685.3,3684.5,2.71405]
[1733291074920,0.8271,3685.3,3684.0,5.7144]
[1733291074921,0.55,3684.5,3683.4,2.71485]
[1733291075210,0.7951,3684.4,3683.7,1.16716236]
[1733291075516,0.7951,3684.4,3683.0,3.52161]
[1733291075517,0.7951,3684.2,3683.4,1.16716236]
[1733291075813,0.55,3684.1,3683.4,1.16716236]
[1733291076879,1.00705006,3684.0,3683.4,1.16716236]
[1733291077077,0.55,3683.9,3683.4,1.16716236]
[1733291077394,0.55,3683.7,3683.4,1.16716236]
[1733291077701,0.55,3683.7,3683.2,2.71502]
[1733291078379,0.55,3683.7,3683.0,3.39533406]
[1733291078380,0.55,3683.7,3683.1,3.0]
[1733291078599,0.55,3683.7,3683.0,2.58883406]
[1733291079614,0.55,3683.7,3683.1,2.7151]
[1733291079915,0.55,3683.7,3683.2,2.71501]
[1733291080916,0.55,3683.7,3683.3,2.71494]
[1733291084121,0.55,3683.7,3683.0,2.58883406]
[1733291084122,0.55,3683.7,3683.4,2.71487]
[1733291089826,0.7948,3683.8,3683.0,2.58883406]
[1733291089827,0.55,3683.5,3683.2,2.715]
[1733291090031,0.55,3683.5,3683.0,2.58883406]
[1733291090032,0.55,3683.5,3683.3,2.71494]
[1733291090235,0.55,3683.5,3683.4,2.71488]
[1733291091210,0.55,3683.5,3683.2,2.71502]
[1733291091399,0.55,3683.5,3683.0,2.58883406]
[1733291091997,0.55,3683.5,3683.3,2.71494]
[1733291092637,0.55,3683.5,3683.4,2.71488]
[1733291093002,0.55,3683.5,3683.4,5.30371406]
[1733291099615,0.55,3683.5,3683.4,3.8830883]
[1733291100249,0.55,3683.5,3683.4,1.1682083]
[1733291101456,0.55,3683.5,3683.1,1.1682083]
[1733291102387,0.55,3683.5,3683.4,1.1682083]
[1733291103736,3.0,3684.2,3683.4,1.1682083]
[1733291103737,0.55,3683.7,3683.4,3.8830883]
[1733291103941,0.55,3683.7,3683.4,1.1682083]
[1733291104250,0.7824,3683.8,3683.2,2.71501]
[1733291104454,0.7824,3683.8,3683.4,1.1682083]
[1733291105454,0.7824,3683.8,3683.0,2.71517]
[1733291105659,0.7824,3683.8,3683.3,1.1682083]
[1733291106163,5.7143,3684.2,3683.3,1.1682083]
[1733291106164,9.51470055,3683.7,3683.3,1.1682083]
[1733291106351,0.95147006,3683.6,3683.3,1.1682083]
[1733291107232,9.51470055,3683.7,3683.3,1.1682083]
[1733291107233,8.72540055,3683.7,3683.6,2.71473]
[1733291107440,8.72540055,3683.7,3683.6,3.8829383]
[1733291107841,8.72540055,3683.7,3683.6,4.6723383]
[1733291108859,8.72540055,3683.7,3683.6,5.8405466]
[1733291109041,0.7888,3684.7,3683.6,5.8405466]
[1733291109241,0.7888,3684.7,3684.3,1.1682083]
[1733291110322,1.16768,3684.7,3684.3,1.1682083]
[1733291110765,1.16768,3684.7,3684.3,3.8823883]
[1733291110968,0.7888,3684.7,3684.3,3.8823883]